bitfinex/quotes_ETHUSD_20251116
["timestamp","ask_amount","ask_price","bid_price","bid_amount"]
[1763309675741,0.19,3100.5,3099.6,6.45244546]
[1763309675943,0.19,3100.5,3099.6,10.32401274]
[1763309676275,0.19,3100.8,3099.7,1.1337408]
[1763309676769,0.6436,3100.8,3099.7,1.1337408]
[1763309677960,0.6436,3100.8,3100.0,1.1337408]
[1763309678350,0.4536,3100.7,3099.9,6.45182102]
[1763309678769,0.38685805,3100.6,3099.9,6.45182102]
[1763309678965,0.4536,3100.7,3099.9,6.45182102]
[1763309679190,0.4536,3100.6,3099.9,6.45182102]
[1763309679961,0.4536,3100.6,3099.5,3.22726646]
[1763309679962,6.74652168,3100.5,3099.5,0.001]
[1763309680172,0.4536,3100.6,3099.5,0.001]
[1763309680377,0.405504,3100.4,3099.5,0.001]
[1763309680995,0.4536,3100.3,3099.5,0.001]
[1763309681768,0.19,3100.9,3099.5,0.001]
[1763309682088,0.4536,3100.8,3099.5,1.1347408]
[1763309682410,1.15206177,3100.8,3099.6,1.08140336]
[1763309682569,1.15206177,3100.8,3099.5,1.1347408]
[1763309682775,0.4536,3100.7,3099.5,1.1347408]
[1763309683863,0.4536,3100.7,3099.6,9.67866819]
[1763309684490,0.4536,3100.7,3099.6,12.90489092]
[1763309684699,0.4536,3100.7,3099.6,14.65487718]
[1763309685002,0.19,3099.7,3099.5,3.22729577]
[1763309686067,0.19,3099.7,3099.5,0.001]
[1763309686372,6.34101768,3100.6,3099.5,0.001]
[1763309686574,0.19,3100.2,3099.5,0.001]
[1763309687575,0.19,3100.2,3099.5,0.03326326]
[1763309687785,0.19,3100.2,3099.5,0.001]
[1763309689383,0.4536,3100.4,3099.5,0.001]
[1763309689790,0.19,3100.9,3099.5,1.3685408]
[1763309690111,0.4536,3100.8,3099.5,1.1347408]
[1763309690517,0.38684731,3100.7,3099.6,9.67866819]
[1763309690677,0.6631,3099.6,3099.5,0.001]
[1763309690877,0.6631,3099.6,3099.5,3.22732682]
[1763309691394,1.1167,3099.6,3099.5,3.22732682]
[1763309691910,0.19,3099.9,3099.5,3.22732682]
[1763309692207,0.4536,3099.8,3099.5,6.45364199]
[1763309692801,0.4536,3099.8,3099.5,0.001]
[1763309693312,0.4731,3099.6,3099.5,0.001]
[1763309693710,0.9267,3099.6,3099.5,0.001]
[1763309695898,0.19,3099.9,3099.5,0.001]
[1763309696303,0.6436,3099.9,3099.5,0.001]
[1763309696523,0.4731,3099.6,3099.5,0.001]
[1763309697040,4.15292273,3099.6,3099.5,0.001]
[1763309697232,4.973719,3099.6,3099.5,0.001]
[1763309697650,7.1217296,3099.5,3099.2,0.001]
[1763309697813,7.1217296,3099.5,3098.5,0.001]
[1763309697814,0.405504,3098.9,3098.5,0.001]
[1763309698014,0.405504,3098.6,3098.5,0.001]
[1763309698337,2.09168696,3098.6,3098.4,0.001]
[1763309698496,0.878604,3098.5,3098.4,0.001]
[1763309698698,0.1419,3098.9,3098.4,3.22847224]
[1763309698945,0.4536,3098.8,3098.4,0.001]
[1763309699330,0.4731,3098.5,3098.4,0.001]
[1763309699829,0.4536,3099.2,3098.4,0.001]
[1763309700145,0.19,3099.1,3098.4,0.03327472]
[1763309700296,6.9062256,3099.9,3098.4,0.03327472]
[1763309700297,0.19,3099.7,3099.1,0.1219]
[1763309700504,0.4536,3100.4,3098.9,0.1219]
[1763309700798,0.19,3101.2,3099.2,0.2408]
[1763309701139,0.19,3101.2,3098.9,0.1219]
[1763309701140,7.1698256,3101.1,3099.5,1.1337408]
[1763309701438,6.7162256,3100.7,3099.3,10.37529832]
[1763309701661,6.7162256,3100.7,3099.3,9.67959576]
[1763309701867,0.6436,3100.6,3099.3,9.67959576]
[1763309702043,0.405504,3100.5,3099.3,9.67959576]
[1763309702239,0.859104,3100.5,3099.3,9.67959576]
[1763309702772,0.19,3099.4,3099.3,3.22652572]
[1763309703189,0.19,3099.4,3098.9,9.68080702]
[1763309703546,0.405504,3099.3,3097.2,0.3597]
[1763309703853,0.405504,3099.1,3097.3,3.22857177]
[1763309704067,0.405504,3099.1,3097.5,3.22834306]
[1763309704380,0.405504,3099.1,3096.1,0.2418]
[1763309704381,0.405504,3098.6,3096.1,0.2418]
[1763309704677,0.1935,3097.6,3096.1,0.2418]
[1763309704876,0.1935,3097.6,3096.2,0.99317225]
[1763309705054,0.1935,3097.6,3096.3,12.9186448]
[1763309705386,0.1935,3098.0,3096.3,13.1604448]
[1763309705583,0.482,3097.7,3096.3,13.1604448]
[1763309705948,0.482,3097.7,3096.4,1.1337408]
[1763309706188,0.482,3097.7,3096.4,2.66247659]
[1763309706389,0.1935,3098.0,3096.5,0.2418]
[1763309707049,0.1935,3098.0,3096.7,1.1337408]
[1763309707714,0.1935,3098.0,3096.3,3.2296612]
[1763309707715,0.405504,3097.6,3096.3,3.2296612]
[1763309707890,0.405504,3097.4,3096.3,6.4593224]
[1763309708298,7.1217296,3097.2,3096.3,3.2296612]
[1763309708494,0.1935,3096.4,3095.6,0.1219]
[1763309708708,6.7162256,3096.3,3095.1,0.168211]
[1763309709006,0.482,3096.2,3095.2,6.58351798]
[1763309709161,0.887504,3096.9,3095.3,0.6751729]
[1763309709358,0.887504,3096.9,3095.3,1.8089137]
[1763309709581,0.405504,3096.7,3095.2,13.04513596]
[1763309710096,0.1935,3097.4,3096.3,0.001]
[1763309710398,6.7162256,3097.8,3096.3,0.001]
[1763309710596,6.7162256,3098.3,3096.4,0.7418]
[1763309710803,0.67182256,3098.2,3096.4,0.2418]
[1763309710970,7.1982256,3098.3,3096.3,0.001]
[1763309711174,0.405504,3098.2,3096.3,1.1347408]
[1763309711496,0.482,3098.2,3096.3,1.3765408]
[1763309711680,7.1982256,3098.2,3096.3,0.001]
[1763309711880,0.405504,3098.1,3096.3,0.001]
[1763309712193,0.405504,3097.6,3096.3,0.001]
[1763309712404,7.37216496,3097.6,3096.3,0.001]
[1763309712699,6.7162256,3097.1,3096.3,0.001]
[1763309713061,0.482,3097.0,3096.3,0.001]
[1763309713277,0.95387296,3098.0,3096.3,0.001]
[1763309713278,0.482,3097.4,3096.3,0.001]
[1763309713704,0.71982256,3097.4,3096.3,0.001]
[1763309713905,3.63361862,3097.8,3096.3,0.001]
[1763309714088,0.482,3097.7,3096.3,0.001]
[1763309714407,0.76037296,3098.0,3096.4,0.7418]
[1763309714561,7.2002256,3098.4,3096.4,0.7418]
[1763309714562,0.002,3098.4,3097.7,0.1199]
[1763309715197,0.002,3098.4,3097.8,6.4561947]
[1763309715363,0.002,3098.4,3097.8,9.68429205]
[1763309715985,0.002,3098.4,3096.6,9.94547782]
[1763309715986,0.002,3098.4,3097.3,0.1199]
[1763309716201,0.002,3098.4,3096.7,1.1337408]
[1763309716202,0.4928,3098.3,3097.1,3.22882696]
[1763309716368,0.405504,3098.2,3097.1,6.45765392]
[1763309716567,0.405504,3098.2,3097.1,9.68648088]
[1763309716982,0.405504,3098.1,3097.1,3.22882696]
[1763309717203,3.22788896,3098.0,3096.8,6.4582795]
[1763309717506,0.002,3098.4,3096.8,6.4582795]
[1763309717507,0.002,3098.4,3096.8,16.38749875]
[1763309717690,0.4928,3098.3,3096.9,1.1337408]
[1763309718096,0.4928,3098.3,3096.8,12.916559]
[1763309718301,0.002,3098.4,3096.9,1.3755408]
[1763309718485,0.4948,3098.4,3096.9,1.3755408]
[1763309718687,0.37221888,3098.3,3096.9,2.81674078]
[1763309718920,0.4948,3098.4,3096.9,2.81674078]
[1763309719281,0.4948,3098.4,3097.0,9.68679366]
[1763309719495,0.4948,3098.4,3097.0,12.91572488]
[1763309719700,0.002,3098.4,3097.1,1.3755408]
[1763309719875,0.002,3098.4,3097.2,0.2418]
[1763309720229,0.002,3098.4,3097.2,1.99381969]
[1763309720376,0.002,3098.4,3097.6,0.5]
[1763309720580,0.002,3098.4,3097.9,0.5]
[1763309720781,0.002,3098.4,3097.7,1.3755408]
[1763309721004,0.002,3099.1,3098.3,0.5]
[1763309721203,0.002,3099.1,3099.0,3.34474737]
[1763309721413,0.002,3099.1,3099.0,3.22684737]
[1763309721700,0.002,3099.1,3099.0,3.46464737]
[1763309721884,0.002,3099.1,3099.0,3.22684737]
[1763309722095,0.002,3099.1,3098.6,9.68176145]
[1763309722523,0.002,3099.1,3098.6,9.91956145]
[1763309722694,0.002,3099.1,3098.7,0.2378]
[1763309723377,0.002,3099.1,3098.8,6.69191126]
[1763309723685,0.002,3099.1,3098.8,6.45411126]
[1763309724612,0.002,3099.1,3098.9,0.2378]
[1763309724926,0.002,3099.1,3099.0,0.66919113]
[1763309725220,0.405504,3100.3,3099.0,0.66919113]
[1763309725221,0.1935,3100.9,3099.0,0.66919113]
[1763309725385,0.4928,3101.1,3099.2,1.2337408]
[1763309725592,0.194,3101.2,3099.2,1.6337408]
[1763309725921,0.4928,3101.1,3099.3,1.76558185]
[1763309726075,0.4928,3101.1,3099.2,1.1337408]
[1763309726076,0.405504,3101.0,3099.2,1.1337408]
[1763309726517,0.405504,3100.8,3099.2,1.1337408]
[1763309726675,0.405504,3100.5,3099.1,6.45348648]
[1763309727174,0.405504,3100.3,3099.1,9.68022972]
[1763309727380,0.405504,3100.3,3098.8,1.1337408]
[1763309727617,0.405504,3100.2,3098.8,1.1337408]
[1763309727788,0.002,3099.1,3098.9,0.2358]
[1763309729527,0.002,3099.1,3099.0,4.36058817]
[1763309730543,0.002,3099.1,3099.0,3.22684737]
[1763309731531,0.002,3099.1,3099.0,3.42264737]
[1763309732425,0.002,3099.8,3099.0,3.42264737]
[1763309732426,0.002,3099.8,3099.3,0.5]
[1763309732626,0.002,3099.8,3099.1,2.17180554]
[1763309732825,0.002,3099.8,3099.5,0.5]
[1763309733026,0.002,3099.8,3099.6,0.5]
[1763309733206,0.002,3099.8,3099.7,0.1958]
[1763309733716,0.002,3099.8,3099.7,4.35985945]
[1763309734032,0.4948,3099.8,3098.3,9.68272923]
[1763309734243,0.4948,3099.8,3098.4,0.99964292]
[1763309734450,0.4948,3099.8,3098.3,3.22757641]
[1763309734451,0.405504,3099.7,3098.3,3.22757641]
[1763309734734,0.405504,3099.7,3097.6,6.45661156]
[1763309734735,0.191,3098.5,3097.6,6.45661156]
[1763309734917,0.191,3098.5,3097.7,1.1337408]
[1763309735096,0.191,3098.5,3097.6,12.91322312]
[1763309735428,0.4561,3098.5,3097.7,1.1337408]
[1763309735632,0.4561,3098.5,3097.1,3.22872329]
[1763309735830,0.4561,3098.5,3097.2,1.1337408]
[1763309736228,0.4561,3098.5,3097.1,3.22872329]
[1763309736815,0.191,3098.6,3097.2,1.8295408]
[1763309737133,0.4561,3098.5,3097.3,0.50582641]
[1763309737330,0.4561,3098.5,3096.5,3.22940874]
[1763309737331,0.191,3097.2,3096.3,6.46031052]
[1763309737641,0.6471,3097.2,3096.3,0.001]
[1763309738148,0.4561,3097.7,3096.3,0.001]
[1763309738434,0.191,3097.5,3096.3,0.001]
[1763309738660,3.22737699,3098.5,3096.3,0.1968]
[1763309738799,0.405504,3098.1,3096.4,0.53229556]
[1763309738994,0.4561,3098.2,3096.5,0.5]
[1763309739510,0.191,3098.6,3096.8,1.1337408]
[1763309739695,0.4561,3098.5,3096.8,1.1337408]
[1763309740296,0.4561,3098.5,3096.8,1.3295408]
[1763309740608,0.405504,3098.4,3096.9,1.7475761]
[1763309741148,0.4561,3098.3,3096.9,1.7475761]
[1763309741310,0.405504,3098.2,3096.8,1.1337408]
[1763309741634,3.63321156,3098.2,3096.9,6.45807096]
[1763309741935,0.405504,3098.0,3096.9,9.68710644]
[1763309742235,0.4561,3098.1,3097.0,1.16603011]
[1763309742399,0.4561,3098.1,3097.0,1.1337408]
[1763309743261,0.4561,3098.1,3097.1,0.03228826]
[1763309743460,0.4561,3098.1,3097.0,1.1337408]
[1763309743763,0.4561,3098.1,3097.1,12.91530784]
[1763309743962,0.4561,3098.1,3097.1,14.64311625]
[1763309744147,0.4561,3098.1,3097.1,11.41428929]
[1763309744352,0.4561,3098.1,3097.1,9.68648088]
[1763309745862,0.861604,3098.5,3097.1,12.91530784]
[1763309746157,0.4561,3098.5,3097.0,9.68775411]
[1763309746358,0.4561,3098.4,3097.0,9.68775411]
[1763309746560,0.191,3098.6,3097.2,0.5]
[1763309746867,3.22674158,3099.2,3097.2,0.5]
[1763309747050,0.4561,3099.3,3097.3,0.1958]
[1763309747249,0.4561,3099.2,3097.3,0.1958]
[1763309747450,0.002,3099.5,3097.3,0.2958]
[1763309747651,0.002,3099.5,3097.5,16.14205]
[1763309747848,0.002,3099.5,3098.0,0.5]
[1763309748048,0.002,3099.5,3098.1,0.0759]
[1763309748465,0.002,3099.5,3098.2,0.1958]
[1763309748938,0.002,3099.5,3098.2,0.6958]
[1763309749283,0.002,3099.5,3098.4,0.5]
[1763309749633,0.002,3099.5,3098.6,1.1337408]
[1763309749944,0.002,3099.5,3098.6,2.53806211]
[1763309750448,0.002,3099.5,3098.8,0.5]
[1763309750649,0.002,3099.5,3098.7,0.1958]
[1763309750650,0.002,3099.5,3098.9,0.5]
[1763309750966,0.002,3099.5,3098.9,0.6958]
[1763309751661,0.002,3099.5,3099.1,1.1337408]
[1763309752065,0.002,3099.5,3099.1,2.47180513]
[1763309752238,0.002,3099.5,3099.1,1.1337408]
[1763309752567,0.4561,3099.4,3098.3,1.1337408]
[1763309752774,0.002,3099.5,3098.3,1.6337408]
[1763309752943,0.4581,3099.5,3098.3,1.1337408]
[1763309753143,0.4581,3099.5,3098.4,1.47402631]
[1763309753970,0.4581,3099.5,3098.6,1.1337408]
[1763309755643,0.002,3099.5,3098.6,1.1337408]
[1763309755835,0.002,3099.5,3098.7,12.90863908]
[1763309756035,0.002,3099.5,3098.7,9.68147931]
[1763309757438,0.002,3099.5,3098.7,11.08573813]
[1763309757773,0.002,3099.5,3098.9,9.68085447]
[1763309758180,0.002,3099.5,3098.9,6.45390298]
[1763309758345,0.002,3099.5,3098.9,9.68085447]
[1763309758763,0.002,3099.5,3098.9,3.22695149]
[1763309758977,0.002,3099.5,3098.9,6.45390298]
[1763309759550,0.002,3099.5,3098.4,1.1337408]
[1763309759551,0.4561,3099.4,3098.4,3.22747224]
[1763309759886,0.002,3099.5,3098.4,3.22747224]
[1763309759887,0.002,3099.5,3098.7,1.1337408]
[1763309760683,0.191,3098.8,3098.1,0.0759]
[1763309760987,0.4561,3098.7,3097.7,6.45640312]
[1763309761145,0.4561,3098.7,3097.0,3.22985563]
[1763309761146,0.405504,3098.6,3097.4,3.22851423]
[1763309761350,0.4561,3098.7,3097.0,6.45885489]
[1763309761568,0.4561,3098.6,3097.1,2.15252409]
[1763309761748,3.68337582,3098.6,3097.2,6.45744542]
[1763309762095,0.4561,3098.6,3097.2,9.68616813]
[1763309762296,0.4561,3098.5,3097.2,12.91489084]
[1763309762651,0.4561,3098.5,3097.2,9.68616813]
[1763309762853,0.4561,3098.5,3097.2,6.45744542]
[1763309763097,0.4561,3098.5,3097.2,9.68616813]
[1763309763396,0.4561,3098.5,3097.2,10.77634327]
[1763309763996,0.4561,3098.5,3097.2,14.00506598]
[1763309764150,0.191,3098.8,3097.2,14.00506598]
[1763309764151,0.191,3098.8,3097.3,1.36182698]
[1763309764349,0.191,3098.8,3097.5,0.5]
[1763309764582,0.191,3098.8,3097.6,0.1958]
[1763309765058,0.002,3099.5,3098.7,0.0759]
[1763309766001,0.002,3099.5,3098.8,6.45411126]
[1763309766202,0.4673,3099.5,3098.8,6.45411126]
[1763309766357,0.002,3099.5,3098.9,1.1337408]
[1763309767700,0.002,3099.8,3099.4,7.97956706]
[1763309767994,0.002,3099.8,3099.3,0.1]
[1763309767995,0.002,3099.8,3099.6,1.1337408]
[1763309768222,0.002,3099.8,3099.4,3.22641322]
[1763309768363,0.002,3099.8,3099.5,1.1337408]
[1763309768563,0.002,3099.8,3099.5,1.89239929]
[1763309768973,0.002,3099.8,3099.5,0.75865849]
[1763309769395,0.0009,3100.2,3099.6,0.1938]
[1763309769560,0.191,3100.9,3099.8,0.5]
[1763309769561,0.18893644,3100.9,3099.8,0.5]
[1763309769766,0.18893644,3100.9,3099.6,0.1938]
[1763309769962,0.18893644,3100.9,3099.9,1.1337408]
[1763309770563,0.4653,3100.8,3099.7,0.20861993]
[1763309770765,0.1882,3099.8,3098.9,6.95389283]
[1763309770999,0.1882,3099.8,3099.0,3.22684737]
[1763309771202,0.1882,3099.8,3099.1,1.1337408]
[1763309771406,0.4653,3099.7,3099.0,1.1337408]
[1763309771769,0.1882,3099.8,3099.0,1.1337408]
[1763309771969,0.1882,3099.8,3099.1,6.45348648]
[1763309772163,0.1882,3099.8,3099.1,9.68022972]
[1763309772624,0.4653,3099.7,3098.2,6.34582626]
[1763309772767,0.4653,3099.7,3098.0,6.9557696]
[1763309772980,0.4653,3099.7,3098.0,6.4557696]
[1763309773186,0.71056646,3099.6,3098.0,6.4557696]
[1763309773405,0.71056646,3099.6,3098.1,1.1337408]
[1763309773603,0.4653,3099.5,3098.1,1.1337408]
[1763309773925,0.4653,3099.5,3098.0,9.68365856]
[1763309774130,3.22643092,3099.4,3097.6,1.6337408]
[1763309774424,0.36917309,3099.3,3097.7,1.65063808]
[1763309774782,0.4653,3099.4,3097.8,1.3296408]
[1763309775026,0.4653,3099.4,3098.2,0.5]
[1763309775331,0.4653,3099.4,3098.0,0.5]
[1763309776138,0.1882,3099.8,3098.4,0.5]
[1763309776281,0.4817,3099.9,3098.2,7.47956706]
[1763309776282,0.1903,3099.9,3098.2,7.47956706]
[1763309776480,0.1903,3099.9,3098.4,1.1337408]
[1763309776769,0.1903,3099.9,3098.7,0.5]
[1763309776920,0.1903,3099.9,3098.9,0.5]
[1763309777787,0.4817,3100.1,3099.0,0.5]
[1763309777985,0.4817,3100.5,3099.2,9.67991739]
[1763309778311,0.4817,3100.8,3099.5,0.5]
[1763309779437,0.4817,3100.8,3099.3,2.4243995]
[1763309780292,3.2250782,3100.7,3099.5,1.1337408]
[1763309780700,0.4817,3100.6,3099.4,9.67929276]
[1763309780900,0.4817,3100.6,3099.4,3.22643092]
[1763309781208,0.4817,3100.6,3099.2,6.45327826]
[1763309781421,0.002,3099.9,3099.2,9.67991739]
[1763309781727,0.002,3099.9,3099.3,1.1337408]
[1763309781909,0.002,3099.9,3099.4,1.08136582]
[1763309782227,0.002,3099.9,3099.5,7.58639444]
[1763309782430,0.002,3099.9,3099.6,1.1337408]
[1763309783151,0.002,3099.9,3099.8,0.5]
[1763309783538,0.002,3099.9,3099.8,0.6959]
[1763309783744,0.4817,3102.3,3100.5,0.12]
[1763309783941,0.4817,3102.3,3101.0,0.5]
[1763309784155,0.1903,3103.0,3101.4,0.5]
[1763309784454,0.1903,3103.0,3101.6,0.5]
[1763309784614,0.002,3103.8,3101.7,0.405504]
[1763309784615,0.4817,3103.6,3101.7,0.405504]
[1763309784811,0.002,3103.8,3102.1,8.05146706]
[1763309785137,0.002,3103.8,3102.1,1.1337408]
[1763309785138,0.672,3102.9,3102.1,1.1337408]
[1763309785948,0.672,3102.9,3102.1,1.2056408]
[1763309786148,0.4817,3103.5,3102.1,1.3975408]
[1763309786379,0.4837,3103.8,3102.1,4.6211635]
[1763309786514,0.4837,3103.8,3102.1,5.1211635]
[1763309786719,0.4837,3103.8,3102.1,5.95565416]
[1763309786963,0.4837,3103.8,3102.1,18.85014496]
[1763309787174,0.002,3103.8,3102.7,0.5]
[1763309787331,0.002,3103.8,3102.2,7.67146706]
[1763309787332,0.4817,3103.7,3102.3,0.5]
[1763309787655,0.4817,3103.7,3102.6,0.5]
[1763309787817,0.4817,3103.7,3102.2,1.1337408]
[1763309788353,6.44412938,3103.6,3102.4,1.1337408]
[1763309788652,0.4817,3103.7,3102.3,6.44682976]
[1763309788858,0.4817,3103.6,3102.3,9.67024464]
[1763309789060,0.4817,3103.6,3102.3,6.44682976]
[1763309789240,0.4817,3103.6,3102.3,9.67024464]
[1763309789429,0.4817,3103.6,3102.4,1.1337408]
[1763309790232,0.4817,3103.6,3102.6,9.6693096]
[1763309790576,0.4817,3103.6,3102.7,1.1337408]
[1763309791560,0.4817,3103.6,3102.6,6.4462064]
[1763309791561,0.1903,3102.8,3102.6,6.4462064]
[1763309791831,0.1903,3102.8,3102.2,1.1337408]
[1763309791963,0.1903,3102.8,3100.5,3.34527875]
[1763309791964,0.672,3102.8,3102.3,6.44682976]
[1763309792457,0.4817,3102.7,3101.6,1.6337408]
[1763309792660,0.1903,3102.8,3101.7,0.48579828]
[1763309793035,0.4817,3102.7,3101.4,1.1337408]
[1763309793239,0.4817,3102.7,3101.3,6.44886379]
[1763309793240,0.1903,3101.4,3099.9,3.22591051]
[1763309793444,0.405504,3101.3,3099.9,6.45182102]
[1763309793668,0.4817,3101.2,3100.0,1.1337408]
[1763309793977,0.4817,3101.2,3099.9,9.67773153]
[1763309794207,0.4817,3101.2,3100.1,0.5]
[1763309794490,0.1903,3101.4,3100.2,3.22559834]
[1763309794491,0.4659,3101.1,3100.2,3.22559834]
[1763309794652,0.4659,3101.1,3099.9,6.45181089]
[1763309794851,0.4659,3101.1,3099.9,9.6777214]
[1763309795063,0.4659,3101.1,3100.0,1.1337408]
[1763309796864,0.4659,3101.1,3099.3,0.5]
[1763309796865,0.1951,3100.1,3099.3,0.5]
[1763309797039,3.69056221,3101.1,3099.4,0.16337408]
[1763309797241,0.1951,3100.4,3099.4,0.16337408]
[1763309797681,9.76050163,3101.4,3099.5,6.66998952]
[1763309797682,0.1903,3101.4,3099.5,6.66998952]
[1763309797983,0.1903,3101.4,3099.6,0.1919]
[1763309797984,0.4659,3101.3,3099.6,0.1919]
[1763309798289,0.4659,3101.3,3099.7,0.5]
[1763309798901,0.405504,3101.1,3099.7,1.1337408]
[1763309799401,0.1951,3099.8,3099.3,0.0719]
[1763309799596,0.405504,3100.6,3100.0,0.001]
[1763309799802,1.29558263,3100.6,3100.0,0.001]
[1763309800098,0.1951,3100.6,3100.0,0.001]
[1763309800466,0.1903,3101.4,3100.0,0.6929]
[1763309800660,0.1903,3101.4,3100.3,0.5]
[1763309800896,0.1903,3101.4,3100.5,1.1337408]
[1763309801074,0.4659,3101.3,3100.5,1.1337408]
[1763309801989,0.1951,3100.6,3100.0,0.001]
[1763309802168,0.4659,3100.5,3100.0,0.001]
[1763309802808,1.16658263,3100.5,3100.0,0.001]
[1763309803210,0.4659,3100.4,3100.0,0.001]
[1763309803370,0.1951,3100.6,3100.0,0.001]
[1763309803570,0.4659,3100.5,3100.0,0.001]
[1763309804276,0.1951,3100.6,3100.0,0.001]
[1763309805010,0.4659,3100.5,3100.0,0.001]
[1763309805195,1.16658263,3100.5,3100.0,0.001]
[1763309805512,9.57040365,3101.2,3100.0,0.001]
[1763309805513,1.1337408,3101.9,3100.1,0.1919]
[1763309805717,0.4659,3101.3,3100.0,0.001]
[1763309806612,3.22404013,3101.7,3100.0,0.001]
[1763309806613,0.4659,3101.7,3100.1,0.5]
[1763309807028,0.4659,3101.5,3100.3,1.1337408]
[1763309807336,0.4659,3101.9,3100.4,1.90361342]
[1763309808848,0.4659,3101.9,3100.4,1.40361342]
[1763309809044,0.4659,3101.9,3100.6,1.1337408]
[1763309809593,0.405504,3101.8,3100.4,1.40361342]
[1763309809822,0.405504,3101.8,3099.8,1.1337408]
[1763309810123,0.405504,3101.8,3098.6,0.001]
[1763309810124,6.75133026,3101.6,3100.1,6.45140478]
[1763309810527,0.4659,3101.5,3100.2,1.1337408]
[1763309810830,0.4659,3101.5,3100.0,3.22678126]
[1763309810831,0.1951,3100.2,3100.0,3.22678126]
[1763309811032,0.1951,3100.2,3100.0,0.001]
[1763309811390,0.1951,3100.5,3100.0,0.001]
[1763309811590,0.1951,3100.8,3100.0,0.001]
[1763309812007,0.4659,3101.3,3100.0,0.001]
[1763309812636,3.22554072,3102.2,3101.2,0.12]
[1763309812637,0.002,3102.2,3101.2,0.12]
[1763309812938,0.002,3102.2,3101.2,0.62]
[1763309813102,0.002,3102.2,3101.3,12.89781704]
[1763309813304,0.002,3102.2,3101.5,0.5]
[1763309813523,0.002,3102.2,3101.4,1.8017817]
[1763309813838,0.002,3102.2,3101.4,1.3017817]
[1763309814622,0.4659,3102.1,3101.4,2.4355225]
[1763309814941,0.002,3102.2,3101.4,2.4355225]
[1763309815134,0.002,3102.2,3101.6,9.67242711]
[1763309815290,0.002,3102.2,3101.6,3.22414237]
[1763309815491,0.1951,3101.7,3100.4,3.41724429]
[1763309815795,0.1951,3101.7,3100.9,1.1337408]
[1763309816639,0.4659,3102.1,3101.0,0.5]
[1763309816790,0.002,3102.2,3101.1,0.1956207]
[1763309816992,0.4659,3102.1,3100.4,3.22530875]
[1763309817245,0.4659,3102.1,3100.8,0.5]
[1763309817399,0.4659,3102.1,3100.8,1.1337408]
[1763309817958,0.002,3102.2,3100.9,0.2241487]
[1763309818096,0.002,3102.2,3101.0,0.405504]
[1763309818529,0.002,3102.2,3101.7,0.5]
[1763309818827,0.002,3102.2,3101.5,0.5]
[1763309819033,0.002,3102.2,3101.7,1.1337408]
[1763309819227,0.002,3102.2,3101.7,2.21435759]
[1763309819733,0.002,3102.2,3101.6,9.67242711]
[1763309819734,0.4679,3102.2,3101.6,6.44828474]
[1763309820671,0.405504,3102.1,3100.1,3.22570239]
[1763309820973,0.405504,3102.1,3100.2,1.1337408]
[1763309820974,1.06579022,3102.1,3100.2,1.1337408]
[1763309821271,1.06579022,3102.1,3100.3,3.2254943]
[1763309821272,1.5392448,3101.9,3100.3,3.2254943]
[1763309821573,2.36166588,3101.7,3100.1,3.22570239]
[1763309821768,0.405504,3101.5,3100.1,6.45140478]
[1763309822150,0.4659,3101.6,3100.1,6.45140478]
[1763309822151,0.4659,3101.4,3100.1,6.45140478]
[1763309822537,0.405504,3101.3,3100.0,0.001]
[1763309822865,0.405504,3101.3,3099.6,0.001]
[1763309822866,0.1951,3100.2,3099.6,0.001]
[1763309823035,6.45140478,3100.1,3099.6,0.001]
[1763309823229,0.66465048,3100.0,3099.6,0.001]
[1763309823467,0.4659,3099.9,3099.6,0.001]
[1763309823652,0.405504,3099.8,3099.3,0.001]
[1763309824081,0.4659,3099.7,3099.3,0.001]
[1763309824486,0.405504,3099.6,3098.3,0.001]
[1763309824841,0.405504,3099.6,3096.7,3.23023795]
[1763309824842,0.1989,3098.4,3097.0,0.16961259]
[1763309825045,0.405504,3098.1,3097.0,0.16961259]
[1763309825276,0.405504,3097.9,3097.0,3.39853625]
[1763309825576,0.4035,3098.1,3097.1,6.45765392]
[1763309825795,0.405504,3098.3,3097.1,6.45765392]
[1763309826140,0.405504,3098.3,3097.0,0.16961259]
[1763309826340,0.1989,3097.1,3097.0,0.16961259]
[1763309826656,0.1989,3097.1,3096.7,0.001]
[1763309827071,0.1989,3097.1,3094.9,3.24526108]
[1763309827072,0.405504,3096.8,3094.5,0.1716]
[1763309827394,0.405504,3095.5,3093.9,6.46433304]
[1763309827557,0.1989,3094.0,3093.6,3.23244713]
[1763309827751,0.405504,3094.9,3092.9,6.46642308]
[1763309827984,0.1989,3095.6,3093.0,0.66237562]
[1763309827985,0.405504,3094.2,3093.0,0.66237562]
[1763309828184,0.405504,3094.2,3090.0,6.44798705]
[1763309828491,0.405504,3094.0,3091.3,9.80990381]
[1763309828689,1.70948033,3094.1,3091.8,0.5]
[1763309828690,0.4535,3094.1,3091.8,0.5]
[1763309828890,0.4535,3094.1,3091.4,2.07157206]
[1763309829106,0.4535,3094.0,3091.6,19.40742654]
[1763309829256,0.1989,3094.3,3091.6,19.40742654]
[1763309829599,0.1989,3094.3,3092.7,0.5]
[1763309829816,0.6524,3094.3,3092.7,0.5]
[1763309829964,0.405504,3094.8,3092.8,0.4205]
[1763309830172,3.4293294,3095.6,3092.8,0.4205]
[1763309830173,0.1989,3095.6,3093.1,0.405504]
[1763309830365,0.4535,3095.5,3093.3,0.5]
[1763309830603,1.5872408,3095.5,3092.5,0.5]
[1763309830803,0.85702112,3095.4,3091.7,0.4205]
[1763309830966,0.85702112,3095.4,3091.6,9.70371327]
[1763309830967,3.25500846,3095.4,3091.6,9.70371327]